Cogmind - Beta 9.2 @@@ ROGUE MODE // 2019.12.04 @ 18:45:25 Player: spruce (@macklemurr) Result: Destroyed by 8R-AWN with 8R-AWN's Boregun Performance ------------- Evolutions (0) 0 Regions Visited (3) 600 Robots Destroyed (14) 70 Value Destroyed (254) 254 Prototype IDs (22) 440 Alien Tech Used (0) 0 Bonus (234) 234 TOTAL SCORE: 1598 Bonus ------- Aligned with FarCom 300 Friendly Fire -66 Cogmind --------- Core Integrity 0/250 Matter 295/300 Energy 37/250 System Corruption 8% Temperature Cool (0) Movement Core (250) Ox4 Location -10/Exiles Parts ------- > --- POWER (1) -------- Ion Engine > --- PROPULSION (2) --- (None) > --- UTILITY (2) ------ Medium Storage Unit > --- WEAPON (2) ------- (None) > --- INVENTORY (8) ---- Modified TNC Targeting Computer Cloak of Protection Chronowheel Peak State ------------ > --- POWER ------------ Ion Engine > --- PROPULSION ------- Compact Wheel Compact Wheel > --- UTILITY ---------- Medium Storage Unit Cloak of Protection > --- WEAPON ----------- Small Laser Small Laser > --- INVENTORY -------- Ion Engine Modified TNC Targeting Computer Chronowheel [Rating: 16] Favorites ----------- Power Ion Engine Engine Ion Engine Propulsion Compact Wheel Leg Aluminum Leg Wheel Compact Wheel Utility Medium Storage Unit Device Cloak of Protection Storage Medium Storage Unit Weapon Small Laser Energy Gun Small Laser Ballistic Gun Assault Rifle Build | -11 -10 -10 -10 ------- Run | Scr Mat Min Exi Slots Evolved . | . . . . Power . | . . . . Propulsion . | . . . . Utility . | . . . . Weapon . | . . . . Parts Attached 14 | 5 7 . 2 Power 2 | 1 . . 1 Engine 2 | 1 . . 1 Core . | . . . . Reactor . | . . . . Propulsion 4 | 2 2 . . Treads . | . . . . Leg 2 | 2 . . . Wheel 2 | . 2 . . Hover . | . . . . Flight . | . . . . Utility 3 | 1 1 . 1 Device 1 | . . . 1 Storage 2 | 1 1 . . Processor . | . . . . Hackware . | . . . . Protection . | . . . . Artifact . | . . . . Weapon 5 | 1 4 . . Energy Gun 2 | . 2 . . Energy Cannon . | . . . . Ballistic Gun 3 | 1 2 . . Ballistic Cannon . | . . . . Launcher . | . . . . Special Weapon . | . . . . Impact Weapon . | . . . . Slashing Weapon . | . . . . Piercing Weapon . | . . . . Special Melee Weapon . | . . . . Unidentified Prototypes . | . . . . Parts Lost 10 | . 5 . 5 Power 1 | . . . 1 Propulsion 4 | . 2 . 2 Utility . | . . . . Weapon 5 | . 3 . 2 Highest Loss Streak 5 | . 5 . 5 Average Slot Usage (%) 96 | . 90 100 97 Engine 14 | . 14 14 14 Leg 3 | . 12 . . Wheel 23 | . 13 28 27 Storage 26 | . 27 28 24 Energy Gun 22 | . 10 28 26 Ballistic Gun 2 | . 10 . . Naked Turns . | . . . . Heaviest Build 23 | 11 19 19 23 Greatest Support 32 | 20 32 32 32 Greatest Overweight (x) 1 | . 1 . 1 Average Overweight (x) . | . . . . Largest Inventory Capacity 10 | 6 10 10 10 Average Capacity 9 | 4 9 10 9 Most Carried 5 | 4 4 2 5 Average Carried 2 | 2 2 2 2 Final Capacity 10 | 6 10 10 8 Final Carried 4 | 4 2 2 4 Class Distribution -------------------- 100% | Mutant Dominant Class ---------------- Mutant | -10/Materials Mutant | -10/Mines Mutant | -10/Exiles Resources | -11 -10 -10 -10 ----------- Run | Scr Mat Min Exi Matter Collected 355 | 250 105 . . Remotely . | . . . . Salvage Created 320 | . 274 46 . Parts 24 | . 22 2 . Haulers Intercepted . | . . . . Recyclers Shooed 1 | . 1 . . Parts Field Recycled . | . . . . Retrieved Matter . | . . . . Parts Self-Destructed . | . . . . Prevented . | . . . . Kills | -11 -10 -10 -10 ------- Run | Scr Mat Min Exi Combat Hostiles Destroyed 13 | . 10 3 . Guns 11 | . 8 3 . AOE 2 | . 2 . . Classes Destroyed 3 | . 3 . . Builder 1 | . 1 . . Swarmer 9 | . 6 3 . Grunt 4 | . 4 . . Best Kill Streak 4 | . 4 3 . Combat Bots Only 4 | . 4 3 . Max Kills in Single Turn 2 | . 2 2 . Gunslinging 1 | . . 1 . Exploded 2 | . 2 . . Melee . | . . . . Uniques/NPCs Destroyed . | . . . . Combat | -11 -10 -10 -10 -------- Run | Scr Mat Min Exi Damage Taken 1121 | . 711 25 385 Core 268 | . 133 . 135 Absorbed by Shields . | . . . . Core Remaining (%) 100 | 100 . . . Volleys Fired 42 | . 37 2 3 Largest 2 | . 2 2 2 Hottest 80 | . 80 80 80 Shots Fired 63 | . 53 4 6 Gun 63 | . 53 4 6 Cannon . | . . . . Launcher . | . . . . Special . | . . . . Kinetic 34 | . 34 . . Thermal 29 | . 19 4 6 Explosive . | . . . . Electromagnetic . | . . . . Robot Hit Streak 10 | . 10 4 6 Robot Miss Streak 4 | . 4 . 1 Penetration Max . | . . . . Secondary Targets 2 | . 1 1 . Max Gunslinging Chain 1 | . 1 1 . Shots Hit Robots 41 | . 34 3 4 Core Hits 22 | . 18 3 1 Critical Hits . | . . . . Critical Kills . | . . . . Critical Parts Destroyed . | . . . . Melee Attacks . | . . . . Impact . | . . . . Slashing . | . . . . Piercing . | . . . . Sneak Attacks . | . . . . Combat Hostiles . | . . . . Follow-up Attacks . | . . . . Damage Inflicted 613 | . 524 45 44 Guns 423 | . 334 45 44 Cannons . | . . . . Explosions 190 | . 190 . . Melee . | . . . . Ramming . | . . . . Kinetic 201 | . 201 . . Thermal 222 | . 133 45 44 Explosive 190 | . 190 . . Electromagnetic . | . . . . Impact . | . . . . Slashing . | . . . . Piercing . | . . . . Highest Corruption 8 | . . . 8 Average Corruption 6 | . . . 6 Corruption Purged . | . . . . Overload Shots . | . . . . Overflow Damage 11 | . 11 . . Projectiles . | . . . . Explosions 11 | . 11 . . Melee . | . . . . Knockbacks . | . . . . Impact . | . . . . Kinetic . | . . . . Secondary . | . . . . Self-Inflicted Damage 101 | . 101 . . Shots 1 | . 1 . . Rammed . | . . . . Targets Rammed . | . . . . Kicked . | . . . . Crushed . | . . . . Highest Temperature 54 | . 54 36 54 Average Temperature 21 | . 20 20 28 Received Heat Transfer 240 | . 240 . . Siege Activations . | . . . . Robots Corrupted . | . . . . Combat Hostiles . | . . . . Parts Fried . | . . . . Impact Corruptions . | . . . . Robots Melted . | . . . . Combat Hostiles . | . . . . Parts Melted . | . . . . Heat Transferred 500 | . 300 100 100 Parts Sabotaged . | . . . . Parts Stolen . | . . . . Parts Stripped . | . . . . Power Chain Reactions . | . . . . Missiles Intercepted . | . . . . Alert | -11 -10 -10 -10 ------- Run | Scr Mat Min Exi Peak Influence 210 | . 210 159 . Average Influence 90 | . 90 104 . Maximum Alert Level 1 | . 1 . . Low Security (%) 93 | 100 81 100 . Level 1 6 | . 18 . . Level 2 . | . . . . Level 3 . | . . . . Level 4 . | . . . . Level 5 . | . . . . High Security . | . . . . Max Security . | . . . . Squads Dispatched 1 | . 1 . . Investigation . | . . . . Extermination . | . . . . Reinforcement 1 | . 1 . . Assault . | . . . . Garrison . | . . . . Intercept . | . . . . Construction Impeded . | . . . . Haulers Reinforced . | . . . . Stealth | -11 -10 -10 -10 --------- Run | Scr Mat Min Exi Distress Signals 2 | . 2 . . Communications Jammed . | . . . . Distress Signals . | . . . . Times Spotted 24 | . 13 3 8 Peak Tracking Total 9 | . 5 3 9 Tactical Retreats 1 | . 1 . . Traps | -11 -10 -10 -10 ------- Run | Scr Mat Min Exi Traps Triggered . | . . . . Indirectly . | . . . . Trap Hack Attempts . | . . . . Triggered . | . . . . Disarmed . | . . . . Reprogrammed . | . . . . Reused . | . . . . Traps Extracted . | . . . . Installed . | . . . . Triggered . | . . . . Machines | -11 -10 -10 -10 ---------- Run | Scr Mat Min Exi Machines Disabled 1 | . 1 . . Max in Single Turn 1 | . 1 . . Machines Sabotaged . | . . . . Garrisons Compromised . | . . . . Overloaded Fab Kills . | . . . . Fab Network Shutdowns . | . . . . Hacking | -11 -10 -10 -10 --------- Run | Scr Mat Min Exi Machines Accessed 4 | . 2 1 1 Terminals 3 | . 2 1 . Fabricators . | . . . . Repair Stations . | . . . . Recycling Units . | . . . . Scanalyzers . | . . . . Garrison Access . | . . . . Total Hacks 7 | . 4 2 1 Successful 6 | . 3 2 1 Failed 1 | . 1 . . Catastrophic 1 | . 1 . . Database Lockouts . | . . . . Manual 5 | . 2 2 1 Terminals 6 | . 4 2 . Fabricators . | . . . . Repair Stations . | . . . . Recycling Units . | . . . . Scanalyzers . | . . . . Garrison Access . | . . . . Terminal Hacks 3 | . 2 . 1 Record 1 | . 1 . . Investigation Status 1 | . 1 . . EX-Prototype ID Bank 1 | . . . 1 Fabricator Hacks . | . . . . Repair Station Hacks . | . . . . Recycling Unit Hacks . | . . . . Scanalyzer . | . . . . Garrison Access Hacks . | . . . . Unauthorized Hacks 7 | . 3 4 . Terminals 3 | . 1 2 . Track 1 | . . 1 . Botnet 1 | . 1 . . Detonate 1 | . . 1 . Fabricators . | . . . . Repair Stations . | . . . . Recycling Units . | . . . . Scanalyzers . | . . . . Garrison Access . | . . . . Data Cores Recovered . | . . . . Used . | . . . . Hacking Detections 2 | . 2 . . Full Trace Events . | . . . . Feedback Events . | . . . . Feedback Blocked . | . . . . Robot Schematics Acquired . | . . . . Robots Built . | . . . . Matter . | . . . . Time . | . . . . Total Robot Build Rating . | . . . . Part Schematics Acquired . | . . . . Parts Built . | . . . . Matter . | . . . . Time . | . . . . Total Part Build Rating . | . . . . Parts Repaired . | . . . . Time . | . . . . Parts Recycled . | . . . . Recycled Matter . | . . . . Retrieved Matter . | . . . . Retrieved Components . | . . . . Parts Scanalyzed . | . . . . Part Schematics Acquired . | . . . . Parts Damaged . | . . . . Bothacking | -11 -10 -10 -10 ------------ Run | Scr Mat Min Exi Used RIF Installer . | . . . . Robots Hacked . | . . . . Non-combat . | . . . . Combat . | . . . . Robot Hacks Applied . | . . . . Relay Couplers Released . | . . . . Robots Rewired . | . . . . Allies Hacked . | . . . . Hacks Repelled . | . . . . Allies | -11 -10 -10 -10 -------- Run | Scr Mat Min Exi Total Allies 3 | . . 3 . Largest Group 3 | . . 3 . Highest-Rated Group 40 | . . 40 . Highest-Rated Ally 16 | . . 16 . Total Orders . | . . . . Ally Attacks . | . . . . Total Damage . | . . . . Kills . | . . . . Allies Corrupted . | . . . . Allies Melted . | . . . . Intel | -11 -10 -10 -10 ------- Run | Scr Mat Min Exi Robot Analysis Total . | . . . . Derelict Logs Recovered 2 | . . 2 . Drone Launches . | . . . . Drone Recoveries . | . . . . Exploration | -11 -10 -10 -10 ------------- Run | Scr Mat Min Exi Turns Passed 1290 | 86 324 524 356 Spaces Moved 1025 | 70 181 434 340 Core 16 | 16 . . . Treads . | . . . . Legs 151 | 54 97 . . Wheels 858 | . 84 434 340 Hover . | . . . . Flight . | . . . . Fastest Speed 50 | 50 100 100 100 Average Speed 102 | 104 113 100 100 Slowest Speed 150 | 120 150 100 110 Overloaded Moves . | . . . . Propulsion Burnouts . | . . . . Robots Hopped . | . . . . Cave-ins Triggered . | . . . . Exploration Rate (%) 49 | 4 32 94 68 Regions Visited 3 Branch Regions 2 Pre-discovered Areas 1 | . . 1 . Known Exits Taken . | . . . . Unknown Exits Taken 3 | 1 1 1 . Scrap Searched 1 | . . 1 . Spaces Dug . | . . . . Terrain Destroyed 37 | . 37 . . Melee . | . . . . Projectile . | . . . . AOE 37 | . 37 . . Actions | -11 -10 -10 -10 --------- Run | Scr Mat Min Exi Total 1203 | 82 251 520 350 Wait 108 | . 23 85 . Move 1022 | 69 180 433 340 Hop . | . . . . Pick Up 15 | 8 4 . 3 Fast Attach 2 | 1 1 . . Attach 12 | 4 6 . 2 Detach 1 | . . . 1 Swap . | . . . . Drop 1 | . . . 1 Fire 42 | . 37 2 3 Melee . | . . . . Ram . | . . . . Kick . | . . . . Crush . | . . . . Escape Stasis . | . . . . Rewire . | . . . . Trap . | . . . . Miscellaneous . | . . . . Route ------- -11/Scrapyard -10/Materials -10/Mines (discovered 3 exits: [*Mat x2] / *Exi) -10/Exiles (discovered 1 exit: [*Min]) History --------- Turn | Location | Event 3 | -11/Scrapyard | Discovered new exit (range 16) 87 | -11/Scrapyard | Entered Materials 316 | -10/Materials | Build established: Mutant 317 | -10/Materials | Lost 5 parts (2n3w) 337 | -10/Materials | Discovered new exit (range 16) 345 | -10/Materials | Core integrity fell below 50% 411 | -10/Materials | Entered Mines 434 | -10/Mines | Met a Derelict bent on vengeance 445 | -10/Mines | Discovered new exit (range 12) 497 | -10/Mines | Discovered new exit (range 7) 531 | -10/Mines | Deemed a non-threat by the Exiles lab entrance 532 | -10/Mines | Discovered new exit (range 5) 591 | -10/Mines | Assisted by bots powering up and referring to "LRC-V3" 684 | -10/Mines | Learned location of Mines (-9) 880 | -10/Mines | Joined a pair of Derelicts in attacking an 0b10 outpost 935 | -10/Mines | Entered Exiles 958 | -10/Exiles | Discovered new exit (range 15) 989 | -10/Exiles | Met 8R-AWN 1005 | -10/Exiles | Met EX-HEX 1054 | -10/Exiles | Met EX-DEC 1075 | -10/Exiles | Visited The Gauntlet 1152 | -10/Exiles | Met EX-BIN 1166 | -10/Exiles | Aligned with FarCom system 1167 | -10/Exiles | Given EX-Vault access code 1195 | -10/Exiles | Opened EX-Vault 1210 | -10/Exiles | Found Cloak of Protection 1215 | -10/Exiles | Found Modified TNC 1217 | -10/Exiles | Found Chronowheel 1239 | -10/Exiles | Warned to stay clear of 0b10 Research branches 1241 | -10/Exiles | Exiles lab attacked by MAIN.C 1263 | -10/Exiles | Attacked by the Exiles 1291 | -10/Exiles | Destroyed by 8R-AWN with 8R-AWN's Boregun Last Messages --------------- HV Slug penetrates Wall. 8R-AWN: "I'll cover you all, get out of here!" Penetrated by HV Slug. HV Slug penetrates Machine. Penetrated by HV Slug. HV Slug penetrates Wall. Ion Engine destroyed. Sml. Laser destroyed. System corrupted by crushing effect (+3). Penetrated by HV Slug. HV Slug penetrates Machine. Penetrated by HV Slug. Knocked back. HV Slug penetrates as-58509. as-58509 suffers critical hit. HV Slug penetrates as-26086. as-26086 suffers critical hit. Penetrated by HV Slug. Com. Wheel destroyed. Penetrated by HV Slug. Map ----- +----------------------------------------------------+ | ??????????????????????#""X" #????????????? | | ??????????????????????#" #????????????? | | ??????????????????????#" ## #????????????? | | ??????????????????????#""""""?# #?#########??? | | ??????????????????????##"###??# #?#"""""""#??? | | ??????????????????????????????# #?#"""""""#??? | | ??????????????????????????????# #?#"""""""#??? | | ?????????????????????????????## ###"" """"#??? | | ?????????????????????????????#" """"#??? | | ?????????????????????????????#" """#??? | | ?????????????????????????????#" """#??? | | ?????????????????????????????#" """#??? | | ??????????????########???????#" """#??? | | ??????????????# """#???????#" """#??? | | ??????????????#"" """#???????## """""?? | | ??????????????#"" #????????# """#??? | | ??????????????#"" #????????#" "X" """"??? | | ??????????????#"" "#????????# """ #??? | | ??????????????# ""#????????# """""""""#??? | | ??????????????#"" ""#??????###" ###########??? | | ??????????????### ###??????#; " #????????????? | | ??????????????### ###?######" #????????????? | | ?????? """#####X# #"###""""""" a ##???????????? | | ??? """""" " " a g ##?????#???#? | | ??? "" """ a #####""""""" | | ??? " @a a " """ " | | ???? a "" | | ????## " | | ?????## | | ??????## a | | ???????##" | | ????????#""" """""" | | ????????#" ######""" | | ????????"" ""##?????####""" | | ????????""" """##??????????#""" | | ????????"" """##???????????#"""" | | ???????""" ""#???????????##"" | | ???????"" ########??####"""" | | ???????""" ## ####""" | | ???????"" """" | | ???????#"" | | ???????#"""" | | ????????# " | | ????????#" " "" """ | | ????????#"""" ""## ##""" " " ""#" | | ????????#"" ""#### ######""" """##" | | ????????#" """"##??# #????###""""#### | | ????????#""" """#??## ####???######??? | | ?????????# ""##??#! "!#???????????? | | ?????????#"" """##???#" !#???????????? | +----------------------------------------------------+ Best States ------------- Heat Dissipation 25 Energy Generation 10 Energy Capacity 250 Matter Stores 300 Matter Capacity 300 Sight Range 16 Terrain Scan Density 10 Cloak Strength 5 Evasion (%) 50 Item Schematics ----------------- None Robot Schematics ------------------ None Fabricated ------------ Nothing Alien Tech Used ----------------- None Achievements -------------- None Challenges ------------ None Game ------ Seed ChargeReactiveReplicator Manual? 0 Play Time 00:10:29 Cumulative 60.2 hours Start 2019.12.04 @ 18:37:36 End 2019.12.04 @ 18:45:25 Sessions 1 Manual Loads 0 Difficulty Rogue Special Mode None Game No. 168 Rogue 168 Adventurer 0 Explorer 0 Win Type - Total 1 Types 1/0/0/0/0/0/0 Lore% 65 Gallery% 61 Achievement% 50 Wizard Run 0 Options --------- ASCII 0 Keyboard 0 Movement Numpad Keybinds 0 Fullscreen 1 Font 24/Smallcaps Map View 76x50 Tactical HUD 0 Map Filters NONE Filters NONE Steam 1 RUN: a76c627c-664c-4b48-af54-0dce79b9dada